[Event "Titled Tuesday Blitz January 03 Early 2023"]
[White "Van den Dikkenberg, Erik"]
[Black "Mohammadian, Mohammad"]
[WhiteFideId "1005880"]
[BlackFideId "12566055"]
[WhiteElo "2091"]
[BlackElo "1398"]
[Result "1-0"]
[Round "11"]
[TimeControl "180+2"]
[Date "2023.01.03"]
[WhiteClock "0:00:26"]
[BlackClock "0:00:17"]

1. e4 {[%clk 0:02:26]}  e5 {[%clk 0:02:59]} 2. Nf3 {[%clk 0:02:25]}  Nc6 {[%clk 0:02:59]} 3. d4 {[%clk 0:02:25]}  exd4 {[%clk 0:02:58]} 4. Nxd4 {[%clk 0:02:17]}  Bc5 {[%clk 0:02:57]} 5. Nb3 {[%clk 0:02:16]}  Bb6 {[%clk 0:02:54]} 6. Nc3 {[%clk 0:02:16]}  d6 {[%clk 0:02:52]} 7. Qe2 {[%clk 0:02:10]}  Be6 {[%clk 0:02:50]} 8. Be3 {[%clk 0:02:08]}  Nf6 {[%clk 0:02:47]} 9. O-O-O {[%clk 0:02:07]}  Qe7 {[%clk 0:02:42]} 10. Bg5 {[%clk 0:02:05]}  h6 {[%clk 0:02:39]} 11. Be3 {[%clk 0:02:03]}  Bxe3+ {[%clk 0:02:37]} 12. Qxe3 {[%clk 0:02:03]}  O-O-O {[%clk 0:02:34]} 13. Bb5 {[%clk 0:01:59]}  Bd7 {[%clk 0:01:52]} 14. Bxc6 {[%clk 0:01:58]}  Bxc6 {[%clk 0:01:52]} 15. Qxa7 {[%clk 0:01:56]}  Nxe4 {[%clk 0:01:48]} 16. Nd5 {[%clk 0:01:34]}  Bxd5 {[%clk 0:01:44]} 17. Rxd5 {[%clk 0:01:33]}  Nxf2 {[%clk 0:01:44]} 18. Qxf2 {[%clk 0:01:28]}  Qe4 {[%clk 0:01:31]} 19. Rhd1 {[%clk 0:01:15]}  Rde8 {[%clk 0:01:26]} 20. Qf5+ {[%clk 0:01:09]}  Qxf5 {[%clk 0:01:23]} 21. Rxf5 {[%clk 0:01:08]}  f6 {[%clk 0:01:23]} 22. Kd2 {[%clk 0:01:01]}  Re6 {[%clk 0:01:21]} 23. Re1 {[%clk 0:01:01]}  Rhe8 {[%clk 0:01:21]} 24. Rxe6 {[%clk 0:01:00]}  Rxe6 {[%clk 0:01:21]} 25. Nd4 {[%clk 0:00:59]}  Re4 {[%clk 0:01:14]} 26. c3 {[%clk 0:00:59]}  Kd7 {[%clk 0:01:11]} 27. Rf3 {[%clk 0:00:57]}  c5 {[%clk 0:01:10]} 28. Nf5 {[%clk 0:00:55]}  Rg4 {[%clk 0:00:59]} 29. g3 {[%clk 0:00:52]}  h5 {[%clk 0:00:54]} 30. Rd3 {[%clk 0:00:51]}  g6 {[%clk 0:00:43]} 31. Nxd6 {[%clk 0:00:47]}  Kc6 {[%clk 0:00:39]} 32. Ne8 {[%clk 0:00:41]}  f5 {[%clk 0:00:38]} 33. Nf6 {[%clk 0:00:30]}  Rg5 {[%clk 0:00:35]} 34. h4 {[%clk 0:00:30]}  Rg4 {[%clk 0:00:28]} 35. Nxg4 {[%clk 0:00:30]}  hxg4 {[%clk 0:00:29]} 36. Ke3 {[%clk 0:00:30]}  b5 {[%clk 0:00:28]} 37. Kf4 {[%clk 0:00:29]}  c4 {[%clk 0:00:26]} 38. Rd4 {[%clk 0:00:29]}  Kc5 {[%clk 0:00:25]} 39. a3 {[%clk 0:00:29]}  b4 {[%clk 0:00:26]} 40. axb4+ {[%clk 0:00:29]}  Kb5 {[%clk 0:00:26]} 41. Kg5 {[%clk 0:00:29]}  Ka4 {[%clk 0:00:25]} 42. Rxc4 {[%clk 0:00:27]}  Kb3 {[%clk 0:00:26]} 43. Rf4 {[%clk 0:00:26]}  Kxb2 {[%clk 0:00:25]} 44. b5 {[%clk 0:00:26]}  Kxc3 {[%clk 0:00:25]} 45. b6 {[%clk 0:00:25]}  Kd3 {[%clk 0:00:25]} 46. Kxg6 {[%clk 0:00:25]}  Ke3 {[%clk 0:00:25]} 47. Kxf5 {[%clk 0:00:26]}  Kd3 {[%clk 0:00:19]} 48. Kxg4 {[%clk 0:00:25]}  Kc3 {[%clk 0:00:18]} 49. h5 {[%clk 0:00:25]}  Kb3 {[%clk 0:00:18]} 50. h6 {[%clk 0:00:26]}  Kc3 {[%clk 0:00:17]} 51. h7 {[%clk 0:00:26]} 1-0


[Site "https://www.chess.com"]

[Event "Titled Tuesday Blitz January 03 Early 2023"]
[White "Ocelak, Jakub"]
[Black "Mitrovic, Darko R"]
[WhiteFideId "23707933"]
[BlackFideId "927023"]
[WhiteElo "2198"]
[BlackElo "2220"]
[Result "1-0"]
[Round "11"]
[TimeControl "180+2"]
[Date "2023.01.03"]
[WhiteClock "0:00:24"]
[BlackClock "0:00:02"]

1. b3 {[%clk 0:03:00]}  d5 {[%clk 0:02:11]} 2. Bb2 {[%clk 0:03:00]}  Nf6 {[%clk 0:02:11]} 3. Nf3 {[%clk 0:03:00]}  g6 {[%clk 0:02:10]} 4. g3 {[%clk 0:02:59]}  Bg7 {[%clk 0:02:10]} 5. Bg2 {[%clk 0:03:00]}  O-O {[%clk 0:02:11]} 6. O-O {[%clk 0:03:00]}  c5 {[%clk 0:02:11]} 7. e3 {[%clk 0:02:58]}  Nc6 {[%clk 0:02:11]} 8. d4 {[%clk 0:02:52]}  cxd4 {[%clk 0:02:08]} 9. Nxd4 {[%clk 0:02:51]}  Nxd4 {[%clk 0:02:02]} 10. Bxd4 {[%clk 0:02:52]}  Bg4 {[%clk 0:01:53]} 11. Qc1 {[%clk 0:02:43]}  Qd7 {[%clk 0:01:47]} 12. Nd2 {[%clk 0:02:40]}  Bh3 {[%clk 0:01:23]} 13. Qb2 {[%clk 0:02:36]}  Bxg2 {[%clk 0:01:21]} 14. Kxg2 {[%clk 0:02:36]}  b6 {[%clk 0:01:12]} 15. Rfd1 {[%clk 0:02:34]}  Nh5 {[%clk 0:01:00]} 16. Nf3 {[%clk 0:02:26]}  Qb7 {[%clk 0:00:49]} 17. Rd2 {[%clk 0:01:57]}  e6 {[%clk 0:00:41]} 18. g4 {[%clk 0:01:43]}  Bxd4 {[%clk 0:00:37]} 19. Qxd4 {[%clk 0:01:44]}  Ng7 {[%clk 0:00:37]} 20. h4 {[%clk 0:01:44]}  h5 {[%clk 0:00:32]} 21. gxh5 {[%clk 0:01:26]}  Nxh5 {[%clk 0:00:29]} 22. Rg1 {[%clk 0:01:24]}  Qe7 {[%clk 0:00:16]} 23. Kf1 {[%clk 0:01:18]}  Qf6 {[%clk 0:00:15]} 24. Qg4 {[%clk 0:01:14]}  Ng7 {[%clk 0:00:15]} 25. h5 {[%clk 0:01:12]}  Qf5 {[%clk 0:00:09]} 26. hxg6 {[%clk 0:00:57]}  Qxg4 {[%clk 0:00:07]} 27. Rxg4 {[%clk 0:00:56]}  f6 {[%clk 0:00:07]} 28. Ke2 {[%clk 0:00:46]}  Rac8 {[%clk 0:00:07]} 29. Kd1 {[%clk 0:00:31]}  Nf5 {[%clk 0:00:07]} 30. Nd4 {[%clk 0:00:29]}  Nxd4 {[%clk 0:00:06]} 31. Rdxd4 {[%clk 0:00:28]}  Kg7 {[%clk 0:00:06]} 32. f4 {[%clk 0:00:24]}  Rc3 {[%clk 0:00:02]} 33. Rd3 {[%clk 0:00:24]} 1-0


[Site "https://www.chess.com"]

[Event "Titled Tuesday Blitz January 03 Early 2023"]
[White "Fernandez Hernandez, Gerardo"]
[Black "Suduvasachmatai"]
[WhiteFideId "2207400"]
[WhiteElo "2181"]
[BlackElo "2107"]
[Result "0-1"]
[Round "11"]
[TimeControl "180+2"]
[Date "2023.01.03"]
[WhiteClock "0:00:02"]
[BlackClock "0:00:03"]

1. e4 {[%clk 0:02:56]}  c5 {[%clk 0:02:59]} 2. d3 {[%clk 0:02:56]}  d5 {[%clk 0:02:59]} 3. Nd2 {[%clk 0:02:55]}  Nc6 {[%clk 0:02:58]} 4. g3 {[%clk 0:02:55]}  e6 {[%clk 0:02:54]} 5. Bg2 {[%clk 0:02:55]}  Nf6 {[%clk 0:02:50]} 6. Ngf3 {[%clk 0:02:55]}  Bd6 {[%clk 0:02:46]} 7. O-O {[%clk 0:02:53]}  O-O {[%clk 0:02:40]} 8. Re1 {[%clk 0:02:52]}  Qc7 {[%clk 0:02:39]} 9. Qe2 {[%clk 0:02:43]}  dxe4 {[%clk 0:02:27]} 10. dxe4 {[%clk 0:02:42]}  e5 {[%clk 0:02:28]} 11. c3 {[%clk 0:02:38]}  Bg4 {[%clk 0:02:27]} 12. h3 {[%clk 0:02:37]}  Bh5 {[%clk 0:02:09]} 13. g4 {[%clk 0:02:34]}  Bg6 {[%clk 0:02:05]} 14. Nh4 {[%clk 0:02:34]}  Rad8 {[%clk 0:01:55]} 15. Nc4 {[%clk 0:02:32]}  Be7 {[%clk 0:01:50]} 16. Nf5 {[%clk 0:02:26]}  Bxf5 {[%clk 0:01:43]} 17. exf5 {[%clk 0:02:21]}  Rfe8 {[%clk 0:01:37]} 18. Bg5 {[%clk 0:01:56]}  h6 {[%clk 0:01:31]} 19. Bxc6 {[%clk 0:01:31]}  bxc6 {[%clk 0:01:26]} 20. Bxf6 {[%clk 0:01:24]}  Bxf6 {[%clk 0:01:23]} 21. Rad1 {[%clk 0:00:56]}  e4 {[%clk 0:01:22]} 22. Rxd8 {[%clk 0:00:54]}  Qxd8 {[%clk 0:01:21]} 23. Rd1 {[%clk 0:00:50]}  Qb8 {[%clk 0:01:10]} 24. Nd6 {[%clk 0:00:47]}  Rd8 {[%clk 0:00:53]} 25. Nxe4 {[%clk 0:00:45]}  Rxd1+ {[%clk 0:00:52]} 26. Qxd1 {[%clk 0:00:45]}  Qxb2 {[%clk 0:00:47]} 27. Nxf6+ {[%clk 0:00:32]}  gxf6 {[%clk 0:00:45]} 28. Qb3 {[%clk 0:00:14]}  Qc1+ {[%clk 0:00:31]} 29. Kg2 {[%clk 0:00:14]}  Qf4 {[%clk 0:00:30]} 30. Qc2 {[%clk 0:00:11]}  h5 {[%clk 0:00:25]} 31. Qe2 {[%clk 0:00:11]}  h4 {[%clk 0:00:23]} 32. Qf3 {[%clk 0:00:09]}  Qa4 {[%clk 0:00:19]} 33. Qe2 {[%clk 0:00:07]}  Kg7 {[%clk 0:00:16]} 34. Kg1 {[%clk 0:00:03]}  Qa3 {[%clk 0:00:15]} 35. Qd2 {[%clk 0:00:02]}  c4 {[%clk 0:00:14]} 36. Kg2 {[%clk 0:00:02]}  Qc5 {[%clk 0:00:14]} 37. g5 {[%clk 0:00:01]}  Qxf5 {[%clk 0:00:12]} 38. gxf6+ {[%clk 0:00:02]}  Qxf6 {[%clk 0:00:12]} 39. Kh2 {[%clk 0:00:02]}  Qe5+ {[%clk 0:00:11]} 40. Kg1 {[%clk 0:00:02]}  Kg6 {[%clk 0:00:08]} 41. f4 {[%clk 0:00:02]}  Qc5+ {[%clk 0:00:07]} 42. Kh2 {[%clk 0:00:02]}  Kg7 {[%clk 0:00:05]} 43. Qg2+ {[%clk 0:00:02]}  Kf8 {[%clk 0:00:03]} 44. Qg4 {[%clk 0:00:01]}  Qd6 {[%clk 0:00:04]} 45. Qxh4 {[%clk 0:00:01]}  Qd2+ {[%clk 0:00:04]} 46. Kg3 {[%clk 0:00:01]}  Qxc3+ {[%clk 0:00:05]} 47. Kg4 {[%clk 0:00:02]}  Qg7+ {[%clk 0:00:04]} 48. Kf3 {[%clk 0:00:01]}  Qc3+ {[%clk 0:00:04]} 49. Kg4 {[%clk 0:00:02]}  Qd3 {[%clk 0:00:04]} 50. Kg5 {[%clk 0:00:02]}  Qg6# {[%clk 0:00:03]} 0-1


[Site "https://www.chess.com"]

[Event "Titled Tuesday Blitz January 03 Early 2023"]
[White "Necula, Iulian"]
[Black "Dos Santos, Emmanuel"]
[WhiteFideId "1232380"]
[BlackFideId "2103559"]
[WhiteElo "1851"]
[BlackElo "2261"]
[Result "1/2-1/2"]
[Round "11"]
[TimeControl "180+2"]
[Date "2023.01.03"]
[WhiteClock "0:00:02"]
[BlackClock "0:00:05"]

1. d4 {[%clk 0:03:00]}  d5 {[%clk 0:02:54]} 2. Nc3 {[%clk 0:03:00]}  Nf6 {[%clk 0:02:51]} 3. Bf4 {[%clk 0:03:00]}  e6 {[%clk 0:02:48]} 4. Nb5 {[%clk 0:02:58]}  Na6 {[%clk 0:02:44]} 5. Nf3 {[%clk 0:02:51]}  c6 {[%clk 0:02:35]} 6. Nc3 {[%clk 0:02:50]}  Bb4 {[%clk 0:02:33]} 7. a3 {[%clk 0:02:07]}  Bxc3+ {[%clk 0:02:27]} 8. bxc3 {[%clk 0:02:07]}  Ne4 {[%clk 0:02:25]} 9. Qd3 {[%clk 0:02:00]}  Qa5 {[%clk 0:02:22]} 10. Bd2 {[%clk 0:01:58]}  O-O {[%clk 0:01:38]} 11. Ng5 {[%clk 0:01:51]}  f5 {[%clk 0:01:33]} 12. f3 {[%clk 0:01:45]}  Nxd2 {[%clk 0:01:31]} 13. Qxd2 {[%clk 0:01:41]}  c5 {[%clk 0:01:29]} 14. e3 {[%clk 0:01:37]}  Bd7 {[%clk 0:01:12]} 15. Be2 {[%clk 0:01:36]}  Rac8 {[%clk 0:01:11]} 16. O-O {[%clk 0:01:31]}  cxd4 {[%clk 0:01:10]} 17. Qxd4 {[%clk 0:01:17]}  Qxc3 {[%clk 0:01:06]} 18. Qxa7 {[%clk 0:01:15]}  Nc5 {[%clk 0:00:34]} 19. Bd3 {[%clk 0:00:48]}  Nxd3 {[%clk 0:00:31]} 20. cxd3 {[%clk 0:00:49]}  Qxd3 {[%clk 0:00:31]} 21. Qd4 {[%clk 0:00:47]}  Qxd4 {[%clk 0:00:23]} 22. exd4 {[%clk 0:00:48]}  h6 {[%clk 0:00:21]} 23. Nh3 {[%clk 0:00:48]}  Rc4 {[%clk 0:00:21]} 24. Rfd1 {[%clk 0:00:44]}  Rfc8 {[%clk 0:00:21]} 25. Nf4 {[%clk 0:00:42]}  Ra4 {[%clk 0:00:20]} 26. Rd3 {[%clk 0:00:39]}  Rcc4 {[%clk 0:00:20]} 27. Ne2 {[%clk 0:00:38]}  Bb5 {[%clk 0:00:16]} 28. Kf2 {[%clk 0:00:33]}  Rc2 {[%clk 0:00:16]} 29. Re3 {[%clk 0:00:31]}  Rxd4 {[%clk 0:00:12]} 30. Ke1 {[%clk 0:00:30]}  Rdd2 {[%clk 0:00:11]} 31. Nd4 {[%clk 0:00:27]}  Bc4 {[%clk 0:00:05]} 32. Nxc2 {[%clk 0:00:26]}  Rxc2 {[%clk 0:00:06]} 33. Kd1 {[%clk 0:00:23]}  Rxg2 {[%clk 0:00:05]} 34. h4 {[%clk 0:00:19]}  Kf7 {[%clk 0:00:05]} 35. Re1 {[%clk 0:00:19]}  Rf2 {[%clk 0:00:03]} 36. f4 {[%clk 0:00:18]}  Rxf4 {[%clk 0:00:03]} 37. Kc2 {[%clk 0:00:17]}  Rxh4 {[%clk 0:00:03]} 38. Kc3 {[%clk 0:00:17]}  Re4 {[%clk 0:00:03]} 39. Rg1 {[%clk 0:00:15]}  b5 {[%clk 0:00:03]} 40. a4 {[%clk 0:00:15]}  bxa4 {[%clk 0:00:03]} 41. Rxa4 {[%clk 0:00:15]}  Rg4 {[%clk 0:00:03]} 42. Ra7+ {[%clk 0:00:15]}  Kf6 {[%clk 0:00:04]} 43. Rh1 {[%clk 0:00:15]}  Ke5 {[%clk 0:00:02]} 44. Re7 {[%clk 0:00:14]}  Kd6 {[%clk 0:00:01]} 45. Re8 {[%clk 0:00:14]}  Ke5 {[%clk 0:00:02]} 46. Re1+ {[%clk 0:00:12]}  Kf6 {[%clk 0:00:02]} 47. R8xe6+ {[%clk 0:00:12]}  Kg5 {[%clk 0:00:02]} 48. Re7 {[%clk 0:00:12]}  Kf4 {[%clk 0:00:03]} 49. Rf1+ {[%clk 0:00:12]}  Kg3 {[%clk 0:00:03]} 50. Re3+ {[%clk 0:00:10]}  Kh4 {[%clk 0:00:02]} 51. Rh1+ {[%clk 0:00:10]}  Kg5 {[%clk 0:00:03]} 52. Rhe1 {[%clk 0:00:10]}  f4 {[%clk 0:00:03]} 53. Re5+ {[%clk 0:00:09]}  Kh4 {[%clk 0:00:03]} 54. Rh1+ {[%clk 0:00:09]}  Kg3 {[%clk 0:00:04]} 55. Rhh5 {[%clk 0:00:08]}  Rg5 {[%clk 0:00:04]} 56. Rhxg5+ {[%clk 0:00:08]}  hxg5 {[%clk 0:00:05]} 57. Rxg5+ {[%clk 0:00:09]}  Kf3 {[%clk 0:00:05]} 58. Rxg7 {[%clk 0:00:09]}  Ke3 {[%clk 0:00:06]} 59. Re7+ {[%clk 0:00:08]}  Kf2 {[%clk 0:00:06]} 60. Kd4 {[%clk 0:00:08]}  f3 {[%clk 0:00:07]} 61. Rf7 {[%clk 0:00:07]}  Ke2 {[%clk 0:00:07]} 62. Re7+ {[%clk 0:00:07]}  Kf2 {[%clk 0:00:07]} 63. Rf7 {[%clk 0:00:07]}  Kg2 {[%clk 0:00:07]} 64. Ke3 {[%clk 0:00:07]}  Be2 {[%clk 0:00:05]} 65. Rg7+ {[%clk 0:00:07]}  Kf1 {[%clk 0:00:05]} 66. Rf7 {[%clk 0:00:06]}  Ke1 {[%clk 0:00:04]} 67. Kd4 {[%clk 0:00:03]}  f2 {[%clk 0:00:04]} 68. Rxf2 {[%clk 0:00:02]}  Kxf2 {[%clk 0:00:05]} 69. Kxd5 {[%clk 0:00:02]} 1/2-1/2


[Site "https://www.chess.com"]

[Event "Titled Tuesday Blitz January 03 Early 2023"]
[White "Pace, Christopher"]
[Black "Guevara Sanchez, Erick Marvin"]
[WhiteFideId "2610167"]
[BlackFideId "6700136"]
[WhiteElo "2053"]
[BlackElo "2073"]
[Result "0-1"]
[Round "11"]
[TimeControl "180+2"]
[Date "2023.01.03"]
[WhiteClock "0:00:41"]
[BlackClock "0:01:55"]

1. e4 {[%clk 0:03:00]}  c5 {[%clk 0:02:59]} 2. Nf3 {[%clk 0:02:53]}  Nc6 {[%clk 0:02:58]} 3. d4 {[%clk 0:02:51]}  cxd4 {[%clk 0:02:59]} 4. Nxd4 {[%clk 0:02:51]}  e5 {[%clk 0:03:00]} 5. Nf3 {[%clk 0:02:50]}  Nf6 {[%clk 0:02:59]} 6. Bc4 {[%clk 0:02:37]}  Nxe4 {[%clk 0:02:50]} 7. O-O {[%clk 0:02:37]}  Nf6 {[%clk 0:02:42]} 8. Re1 {[%clk 0:02:35]}  d6 {[%clk 0:02:41]} 9. Ng5 {[%clk 0:02:19]}  d5 {[%clk 0:02:37]} 10. Bb5 {[%clk 0:02:20]}  Bd6 {[%clk 0:02:36]} 11. c4 {[%clk 0:02:20]}  d4 {[%clk 0:02:33]} 12. f4 {[%clk 0:02:07]}  e4 {[%clk 0:02:08]} 13. Nxe4 {[%clk 0:02:02]}  O-O {[%clk 0:02:08]} 14. Nxd6 {[%clk 0:01:52]}  Qxd6 {[%clk 0:02:07]} 15. b3 {[%clk 0:01:32]}  d3 {[%clk 0:02:04]} 16. Bb2 {[%clk 0:01:23]}  Ng4 {[%clk 0:02:01]} 17. b4 {[%clk 0:00:41]}  Nxb4 {[%clk 0:01:55]} 0-1


[Site "https://www.chess.com"]

[Event "Titled Tuesday Blitz January 03 Early 2023"]
[White "Flis, Pawel"]
[Black "KSho99"]
[WhiteFideId "1112864"]
[WhiteElo "1879"]
[BlackElo "2118"]
[Result "1-0"]
[Round "11"]
[TimeControl "180+2"]
[Date "2023.01.03"]
[WhiteClock "0:00:35"]
[BlackClock "0:00:22"]

1. e4 {[%clk 0:03:00]}  g6 {[%clk 0:02:54]} 2. d4 {[%clk 0:03:00]}  Bg7 {[%clk 0:02:52]} 3. Nc3 {[%clk 0:03:00]}  a6 {[%clk 0:02:51]} 4. a4 {[%clk 0:02:59]}  b6 {[%clk 0:02:49]} 5. Be3 {[%clk 0:02:58]}  Bb7 {[%clk 0:02:49]} 6. Bd3 {[%clk 0:02:58]}  e6 {[%clk 0:02:44]} 7. Nf3 {[%clk 0:02:55]}  Ne7 {[%clk 0:02:43]} 8. Qd2 {[%clk 0:02:55]}  h6 {[%clk 0:02:43]} 9. O-O {[%clk 0:02:52]}  d6 {[%clk 0:02:43]} 10. Ne2 {[%clk 0:02:44]}  Nd7 {[%clk 0:02:42]} 11. c3 {[%clk 0:02:44]}  g5 {[%clk 0:02:38]} 12. Ng3 {[%clk 0:02:42]}  Ng6 {[%clk 0:02:35]} 13. Nh5 {[%clk 0:02:40]}  Bf8 {[%clk 0:02:24]} 14. h3 {[%clk 0:02:35]}  Nf6 {[%clk 0:02:22]} 15. Nxf6+ {[%clk 0:02:18]}  Qxf6 {[%clk 0:02:22]} 16. Nh2 {[%clk 0:02:18]}  Be7 {[%clk 0:02:07]} 17. f4 {[%clk 0:02:09]}  gxf4 {[%clk 0:02:05]} 18. Bxf4 {[%clk 0:02:06]}  Nxf4 {[%clk 0:02:02]} 19. Rxf4 {[%clk 0:02:07]}  Qg7 {[%clk 0:01:56]} 20. Raf1 {[%clk 0:02:03]}  Bg5 {[%clk 0:01:51]} 21. Rg4 {[%clk 0:01:47]}  Qxd4+ {[%clk 0:01:12]} 22. cxd4 {[%clk 0:01:30]}  Bxd2 {[%clk 0:01:11]} 23. Rg7 {[%clk 0:01:28]}  Be3+ {[%clk 0:01:04]} 24. Kh1 {[%clk 0:01:27]}  Bxd4 {[%clk 0:01:03]} 25. Rgxf7 {[%clk 0:01:27]}  O-O-O {[%clk 0:00:58]} 26. Ng4 {[%clk 0:01:21]}  Bxb2 {[%clk 0:00:54]} 27. Re7 {[%clk 0:01:14]}  Rd7 {[%clk 0:00:46]} 28. Rff7 {[%clk 0:01:12]}  Rxe7 {[%clk 0:00:44]} 29. Rxe7 {[%clk 0:01:13]}  Kd8 {[%clk 0:00:44]} 30. Rxe6 {[%clk 0:01:10]}  Re8 {[%clk 0:00:39]} 31. Rxh6 {[%clk 0:01:06]}  Bxe4 {[%clk 0:00:39]} 32. Bxa6 {[%clk 0:00:55]}  Rf8 {[%clk 0:00:30]} 33. Re6 {[%clk 0:00:37]}  Rf1+ {[%clk 0:00:22]} 34. Bxf1 {[%clk 0:00:35]} 1-0


[Site "https://www.chess.com"]

[Event "Titled Tuesday Blitz January 03 Early 2023"]
[White "Tarnowska, Aleksandra"]
[Black "Tuleyeva-Aketayeva, Dana"]
[WhiteFideId "1180967"]
[BlackFideId "13701932"]
[WhiteElo "1835"]
[BlackElo "2130"]
[Result "0-1"]
[Round "11"]
[TimeControl "180+2"]
[Date "2023.01.03"]
[WhiteClock "0:00:01"]
[BlackClock "0:00:19"]

1. e4 {[%clk 0:03:00]}  c5 {[%clk 0:02:56]} 2. Nf3 {[%clk 0:02:56]}  Nc6 {[%clk 0:02:54]} 3. Bb5 {[%clk 0:02:56]}  g6 {[%clk 0:02:54]} 4. O-O {[%clk 0:02:56]}  Bg7 {[%clk 0:02:53]} 5. c3 {[%clk 0:02:56]}  Nf6 {[%clk 0:02:54]} 6. e5 {[%clk 0:02:56]}  Nd5 {[%clk 0:02:54]} 7. d4 {[%clk 0:02:49]}  cxd4 {[%clk 0:02:51]} 8. cxd4 {[%clk 0:02:48]}  O-O {[%clk 0:02:49]} 9. Nc3 {[%clk 0:02:40]}  Nc7 {[%clk 0:02:44]} 10. Bc4 {[%clk 0:02:19]}  d6 {[%clk 0:02:42]} 11. Qe2 {[%clk 0:02:05]}  Bg4 {[%clk 0:02:35]} 12. exd6 {[%clk 0:01:41]}  exd6 {[%clk 0:02:16]} 13. h3 {[%clk 0:01:27]}  Nxd4 {[%clk 0:02:09]} 14. Qe4 {[%clk 0:01:21]}  Nxf3+ {[%clk 0:02:04]} 15. gxf3 {[%clk 0:01:18]}  Bxh3 {[%clk 0:02:02]} 16. Rd1 {[%clk 0:01:10]}  Bf5 {[%clk 0:01:54]} 17. Qxb7 {[%clk 0:00:58]}  Ne6 {[%clk 0:01:40]} 18. Qd5 {[%clk 0:00:43]}  Qh4 {[%clk 0:01:28]} 19. Qxd6 {[%clk 0:00:41]}  Rad8 {[%clk 0:01:20]} 20. Qg3 {[%clk 0:00:39]}  Rxd1+ {[%clk 0:01:19]} 21. Nxd1 {[%clk 0:00:39]}  Qxc4 {[%clk 0:01:18]} 22. Ne3 {[%clk 0:00:30]}  Qb5 {[%clk 0:01:06]} 23. a4 {[%clk 0:00:17]}  Qa5 {[%clk 0:01:02]} 24. Nxf5 {[%clk 0:00:10]}  Qxf5 {[%clk 0:00:57]} 25. f4 {[%clk 0:00:08]}  Rd8 {[%clk 0:00:53]} 26. Be3 {[%clk 0:00:06]}  a6 {[%clk 0:00:52]} 27. Re1 {[%clk 0:00:03]}  Bxb2 {[%clk 0:00:50]} 28. Bb6 {[%clk 0:00:02]}  Rc8 {[%clk 0:00:48]} 29. Be3 {[%clk 0:00:02]}  Ng7 {[%clk 0:00:45]} 30. a5 {[%clk 0:00:03]}  Nh5 {[%clk 0:00:45]} 31. Qg5 {[%clk 0:00:03]}  Qh3 {[%clk 0:00:44]} 32. Rd1 {[%clk 0:00:03]}  Qf3 {[%clk 0:00:40]} 33. Rd8+ {[%clk 0:00:03]}  Rxd8 {[%clk 0:00:40]} 34. Qxd8+ {[%clk 0:00:04]}  Kg7 {[%clk 0:00:41]} 35. Bd4+ {[%clk 0:00:04]}  Bxd4 {[%clk 0:00:40]} 36. Qxd4+ {[%clk 0:00:05]}  Nf6 {[%clk 0:00:40]} 37. Kf1 {[%clk 0:00:04]}  Qh1+ {[%clk 0:00:38]} 38. Ke2 {[%clk 0:00:04]}  Qh5+ {[%clk 0:00:38]} 39. Ke3 {[%clk 0:00:04]}  Qxa5 {[%clk 0:00:37]} 40. Qd6 {[%clk 0:00:02]}  Qc3+ {[%clk 0:00:26]} 41. Ke2 {[%clk 0:00:02]}  Qc2+ {[%clk 0:00:25]} 42. Ke1 {[%clk 0:00:01]}  Qe4+ {[%clk 0:00:22]} 43. Kf1 {[%clk 0:00:01]}  a5 {[%clk 0:00:19]} 0-1


[Site "https://www.chess.com"]

[Event "Titled Tuesday Blitz January 03 Early 2023"]
[White "Tharushi, T H D Niklesha"]
[Black "Blindsplieler"]
[WhiteFideId "9918264"]
[WhiteElo "1570"]
[BlackElo "2071"]
[Result "1-0"]
[Round "11"]
[TimeControl "180+2"]
[Date "2023.01.03"]
[WhiteClock "0:01:09"]
[BlackClock "0:00:23"]

1. e4 {[%clk 0:02:55]}  e5 {[%clk 0:02:58]} 2. Nf3 {[%clk 0:02:52]}  Nc6 {[%clk 0:02:58]} 3. Bc4 {[%clk 0:02:51]}  Nf6 {[%clk 0:02:57]} 4. d3 {[%clk 0:02:44]}  Bc5 {[%clk 0:02:56]} 5. c3 {[%clk 0:02:44]}  a6 {[%clk 0:02:54]} 6. O-O {[%clk 0:02:41]}  d6 {[%clk 0:02:52]} 7. a4 {[%clk 0:02:40]}  Ba7 {[%clk 0:02:51]} 8. b4 {[%clk 0:02:39]}  O-O {[%clk 0:02:50]} 9. Na3 {[%clk 0:02:39]}  h6 {[%clk 0:02:47]} 10. b5 {[%clk 0:02:38]}  Ne7 {[%clk 0:02:45]} 11. Be3 {[%clk 0:02:37]}  Ng6 {[%clk 0:02:40]} 12. Bxa7 {[%clk 0:02:35]}  Rxa7 {[%clk 0:02:39]} 13. a5 {[%clk 0:02:34]}  Nf4 {[%clk 0:02:32]} 14. Qb3 {[%clk 0:02:30]}  Be6 {[%clk 0:02:26]} 15. b6 {[%clk 0:02:27]}  cxb6 {[%clk 0:02:24]} 16. axb6 {[%clk 0:02:28]}  Ra8 {[%clk 0:02:24]} 17. g3 {[%clk 0:02:27]}  Bxc4 {[%clk 0:02:18]} 18. Nxc4 {[%clk 0:02:26]}  Nxd3 {[%clk 0:02:16]} 19. Rad1 {[%clk 0:02:24]}  Nc5 {[%clk 0:02:13]} 20. Qb4 {[%clk 0:02:20]}  Nfxe4 {[%clk 0:02:03]} 21. Nxd6 {[%clk 0:02:14]}  Qf6 {[%clk 0:01:52]} 22. Nxe4 {[%clk 0:02:13]}  Qxf3 {[%clk 0:01:28]} 23. Nxc5 {[%clk 0:02:10]}  f5 {[%clk 0:01:24]} 24. Nd7 {[%clk 0:02:02]}  f4 {[%clk 0:01:23]} 25. Nxf8 {[%clk 0:01:57]}  Rxf8 {[%clk 0:01:24]} 26. Qc4+ {[%clk 0:01:56]}  Kh8 {[%clk 0:01:20]} 27. Qd3 {[%clk 0:01:43]}  Qg4 {[%clk 0:01:19]} 28. Qd7 {[%clk 0:01:41]}  Qh5 {[%clk 0:01:13]} 29. Qe7 {[%clk 0:01:39]}  Rf7 {[%clk 0:01:09]} 30. Rd8+ {[%clk 0:01:36]}  Kh7 {[%clk 0:01:08]} 31. Qe8 {[%clk 0:01:33]}  f3 {[%clk 0:01:03]} 32. Qh8+ {[%clk 0:01:26]}  Kg6 {[%clk 0:01:03]} 33. Rd6+ {[%clk 0:01:26]}  Kg5 {[%clk 0:00:35]} 34. h4+ {[%clk 0:01:20]}  Kf5 {[%clk 0:00:28]} 35. Qc8+ {[%clk 0:01:19]}  Ke4 {[%clk 0:00:24]} 36. Qc4+ {[%clk 0:01:17]}  Kf5 {[%clk 0:00:23]} 37. Qe6+ {[%clk 0:01:11]}  Ke4 {[%clk 0:00:23]} 38. Re1# {[%clk 0:01:09]} 1-0


[Site "https://www.chess.com"]